fUST/lending_fUST_20260306
["ID","MTS","AMOUNT","RATE_DAILY","PERIOD"]
[407756293,1772764246414,-16419.46984082,6.346e-05,2]
[407756294,1772764261884,-1035.51743509,6.346e-05,2]
[407756300,1772764680192,409.75,3.8e-06,2]
[407756301,1772764680476,409.75,3.8e-06,2]
[407756302,1772764680754,409.75,3.8e-06,2]
[407756330,1772765432407,-859.11990399,4.805e-05,2]
[407756331,1772765432458,-176.3975311,4.805e-05,2]
[407756332,1772765432468,-2249.41077218,4.853e-05,2]
[407756770,1772765441164,-845.15949572,4.853e-05,2]
[407756882,1772765443624,-391.53494979,4.853e-05,2]
[407756888,1772765446422,-5035.28225473,4.853e-05,2]
[407756889,1772765446478,-5920.51060794,4.853e-05,2]
[407756890,1772765446529,-469.69413159,4.853e-05,2]
[407756946,1772766483872,430.24,3.8e-06,2]
[407756947,1772766484152,430.24,3.8e-06,2]
[407756980,1772766631614,-170.9079318,3.998e-05,2]
[407756982,1772766631624,-259.9440742,4.294e-05,2]
[407756984,1772766631633,-49.57972094,4.591e-05,3]
[407756986,1772766631644,-950.42027906,4.591e-05,3]
[407756988,1772766631654,-300.0,4.599e-05,2]
[407756990,1772766631663,-300.0,4.599e-05,2]
[407756992,1772766631672,-1200.0,4.599e-05,2]
[407756994,1772766631682,-1032.247927,4.6e-05,2]
[407756996,1772766631691,-2783.46378575,4.6e-05,2]
[407756998,1772766631700,-2302.2249918,4.6e-05,2]
[407757000,1772766631709,-1432.67478113,4.6e-05,2]
[407757191,1772766637793,-1110.16960761,4.6e-05,2]
[407757193,1772766637802,-2556.8283143,4.6e-05,2]
[407757195,1772766637811,-24252.0552971,4.653e-05,2]
[407757197,1772766637822,-25878.19336011,4.653e-05,2]
[407757201,1772766637846,-638.21574962,4.653e-05,2]
[407757517,1772766643326,-4111.32773825,4.653e-05,2]
[407757518,1772766643337,-1275.38190145,4.653e-05,2]
[407757519,1772766643350,-1764.06839469,4.653e-05,2]
[407757520,1772766643369,-5218.02070153,4.653e-05,2]
[407757523,1772766645735,-107499.00201216,4.653e-05,2]
[407757524,1772766645747,-8199.38133468,4.653e-05,2]
[407757525,1772766645841,-8610.99485752,4.653e-05,2]
[407757647,1772767526075,7970.81024093,2e-05,2]
[407757648,1772767555674,10000.0,1e-05,2]
[407757649,1772767561864,10000.0,1e-05,2]
[407757721,1772767824494,-701.76266291,1.98e-05,2]
[407757722,1772767824523,-264.84173573,1.99e-05,2]
[407757723,1772767824557,-701.76266291,2e-05,2]
[407757724,1772767824568,-264.84173573,2e-05,2]
[407757725,1772767824580,-403.40887708,2e-05,2]
[407757732,1772767831837,-659.17648335,2e-05,2]
[407757733,1772767831848,-1000.0,2.714e-05,2]
[407757734,1772767831858,-1545.3351433,3.457e-05,2]
[407757735,1772767831868,-312.51324816,3.99e-05,2]
[407757736,1772767831879,-416.331488,4.029e-05,2]
[407757737,1772767831889,-416.331488,4.199e-05,2]
[407757738,1772767831900,-300.0,4.299e-05,2]
[407757739,1772767831910,-300.0,4.299e-05,2]
[407757740,1772767831921,-4309.26422306,4.3e-05,2]
[407757741,1772767831933,-671.549076,4.3e-05,2]
[407757742,1772767831943,-622.44696343,4.3e-05,2]
[407757743,1772767831956,-384.768375,4.3e-05,2]
[407757786,1772767838032,-318.63637768,4.3e-05,2]
[407758108,1772767846006,-10990.36377523,4.3e-05,2]
[407758109,1772767846016,-1672.05189288,4.3e-05,2]
[407758253,1772768285379,200.78,3.8e-06,2]
[407758254,1772768285680,200.78,3.8e-06,2]
[407758255,1772768285932,200.76,3.8e-06,2]
[407758392,1772769031975,-329.18344819,3.395e-05,2]
[407758393,1772769032002,-434.44183182,3.395e-05,2]
[407758441,1772769038373,-1986.45869063,3.395e-05,2]
[407758443,1772769038383,-263.2600482,3.412e-05,2]
[407758445,1772769038392,-300.0,3.499e-05,2]
[407758447,1772769038401,-11509.24896756,3.5e-05,5]
[407758449,1772769038410,-1000.0,3.799e-05,3]
[407758451,1772769038419,-11670.41805557,3.801e-05,2]
[407758454,1772769038434,-89035.3353975,3.801e-05,2]
[407758896,1772769046623,-1041.66666667,3.361e-05,2]
[407759187,1772770083883,210.82,3.8e-06,2]
[407759188,1772770084201,210.81,3.8e-06,2]
[407759234,1772770232110,-5000.0,3.281e-05,2]
[407759235,1772770232120,-257.99484724,3.314e-05,2]
[407759236,1772770232130,-277.554325,3.4e-05,2]
[407759237,1772770232139,-277.554325,3.543e-05,2]
[407759238,1772770232148,-8219.10308253,3.663e-05,2]
[407759504,1772770240768,-459.34763194,3.626e-05,2]
[407759934,1772770246213,-9068.7901808,3.626e-05,2]
[407759938,1772770246268,-489.51080039,3.626e-05,2]
[407759940,1772770246278,-2775.55401121,3.626e-05,2]
[407759942,1772770246287,-2728.64008458,3.663e-05,2]
[407760029,1772770951936,-2000.0,2.512e-05,2]
[407760030,1772770954546,-918.23744055,2.512e-05,2]
[407760031,1772770954567,-272.7656802,2.525e-05,2]
[407760032,1772770954590,-808.99687925,2.537e-05,2]
[407760033,1772770956464,-2000.0,2.537e-05,2]
[407760034,1772770957524,-2000.0,2.537e-05,2]
[407760035,1772770958491,-191.00312075,2.537e-05,2]
[407760036,1772770958511,-300.0,2.617e-05,2]
[407760037,1772770958532,-300.0,2.618e-05,2]
[407760038,1772770958554,-1200.0,2.618e-05,2]
[407760039,1772770958573,-8.99687925,2.619e-05,2]
[407760043,1772770963086,-2000.0,2.619e-05,2]
[407760044,1772770964362,-2000.0,2.619e-05,2]
[407760046,1772770968701,-1000.0,2.619e-05,2]
[407760128,1772771432243,-1119.71724561,2.49e-05,2]
[407760129,1772771432254,-3061.15593286,2.49e-05,2]
[407760135,1772771432349,-819.12682153,2.49e-05,2]
[407760137,1772771432359,-5000.0,2.515e-05,2]
[407760139,1772771432369,-267.31036659,2.553e-05,2]
[407760141,1772771432379,-3261.79629477,2.619e-05,2]
[407760201,1772771438497,-941.81791522,2.619e-05,2]
[407760203,1772771438508,-53978.10464086,2.619e-05,2]
[407760205,1772771438518,-1550.96822656,3.5e-05,2]
[407760207,1772771438529,-4219.76787617,3.5e-05,2]
[407760209,1772771438538,-14224.23700237,3.5e-05,2]
[407760211,1772771438546,-151.0,3.563e-05,2]
[407760213,1772771438555,-489.51080039,3.626e-05,2]
[407760215,1772771438565,-277.554325,3.686e-05,2]
[407760217,1772771438574,-277.554325,3.829e-05,2]
[407760219,1772771438584,-277.554325,3.972e-05,2]
[407760221,1772771438595,-277.554325,4.115e-05,2]
[407760223,1772771438604,-1257.8656633,4.219e-05,2]
[407760225,1772771438613,-1030.6516602,4.219e-05,2]
[407760227,1772771438623,-25451.3975371,4.219e-05,2]
[407760229,1772771438633,-151.0,4.219e-05,2]
[407760231,1772771438642,-315.42623258,4.553e-05,2]
[407760233,1772771438652,-5678.9744084,4.786e-05,2]
[407760235,1772771438662,-1267.1504692,4.913e-05,2]
[407760237,1772771438672,-153.36,5e-05,2]
[407760239,1772771438682,-979.79,5e-05,2]
[407760241,1772771438692,-152.39,5e-05,2]
[407760243,1772771438701,-500.0,5e-05,2]
[407760245,1772771438710,-177.89,5e-05,2]
[407760247,1772771438719,-215.7822634,5e-05,2]
[407760249,1772771438728,-501.01071191,5e-05,2]
[407760251,1772771438737,-500.0,5e-05,2]
[407760253,1772771438746,-500.0,5e-05,2]
[407760255,1772771438756,-500.0,5e-05,2]
[407760256,1772771438767,-500.0,5e-05,2]
[407760258,1772771438778,-500.0,5e-05,2]
[407760260,1772771438788,-500.0,5e-05,2]
[407760262,1772771438797,-487.07342294,5e-05,2]
[407760264,1772771438807,-500.0,5e-05,2]
[407760266,1772771438816,-500.0,5e-05,2]
[407760268,1772771438825,-500.0,5e-05,2]
[407760270,1772771438835,-500.0,5e-05,2]
[407760272,1772771438844,-500.0,5e-05,2]
[407760274,1772771438853,-500.0,5e-05,2]
[407760276,1772771438863,-500.0,5e-05,2]
[407760278,1772771438873,-500.0,5e-05,2]
[407760280,1772771438883,-500.0,5e-05,2]
[407760282,1772771438892,-500.0,5e-05,2]
[407760284,1772771438901,-500.0,5e-05,2]
[407760286,1772771438913,-500.0,5e-05,2]
[407760288,1772771438922,-500.0,5e-05,2]
[407760290,1772771438932,-500.0,5e-05,2]
[407760292,1772771438941,-500.0,5e-05,2]
[407760294,1772771438950,-500.0,5e-05,2]
[407760296,1772771438960,-500.0,5e-05,2]
[407760298,1772771438970,-500.0,5e-05,2]
[407760300,1772771438979,-500.0,5e-05,2]
[407760302,1772771438988,-500.0,5e-05,2]
[407760304,1772771438997,-500.0,5e-05,2]
[407760306,1772771439008,-500.0,5e-05,2]
[407760308,1772771439017,-500.0,5e-05,2]
[407760310,1772771439026,-500.0,5e-05,2]
[407760312,1772771439035,-500.0,5e-05,2]
[407760314,1772771439044,-500.0,5e-05,2]
[407760316,1772771439054,-500.0,5e-05,2]
[407760318,1772771439063,-500.0,5e-05,2]
[407760319,1772771439072,-500.0,5e-05,2]
[407760321,1772771439082,-500.0,5e-05,2]
[407760323,1772771439091,-500.0,5e-05,2]
[407760325,1772771439101,-500.0,5e-05,2]
[407760327,1772771439110,-500.0,5e-05,2]
[407760329,1772771439120,-497.59192866,5e-05,2]
[407760331,1772771439129,-500.0,5e-05,2]
[407760333,1772771439138,-500.0,5e-05,2]
[407760335,1772771439147,-500.0,5e-05,2]
[407760337,1772771439157,-500.0,5e-05,2]
[407760339,1772771439167,-500.0,5e-05,2]
[407760341,1772771439176,-500.0,5e-05,2]
[407760343,1772771439186,-500.0,5e-05,2]
[407760345,1772771439195,-500.0,5e-05,2]
[407760347,1772771439205,-500.0,5e-05,2]
[407760349,1772771439214,-500.0,5e-05,2]
[407760351,1772771439224,-500.0,5e-05,2]
[407760353,1772771439233,-500.0,5e-05,2]
[407760355,1772771439242,-500.0,5e-05,2]
[407760357,1772771439251,-500.0,5e-05,2]
[407760359,1772771439260,-500.0,5e-05,2]
[407760360,1772771439269,-500.0,5e-05,2]
[407760362,1772771439278,-500.0,5e-05,2]
[407760364,1772771439288,-500.0,5e-05,2]
[407760367,1772771439297,-500.0,5e-05,2]
[407760368,1772771439307,-500.0,5e-05,2]
[407760370,1772771439316,-500.0,5e-05,2]
[407760372,1772771439325,-500.0,5e-05,2]
[407760374,1772771439334,-500.0,5e-05,2]
[407760376,1772771439344,-321.38875368,5e-05,2]
[407760378,1772771439353,-500.0,5e-05,2]
[407760380,1772771439363,-500.0,5e-05,2]
[407760382,1772771439374,-500.0,5e-05,2]
[407760385,1772771439383,-500.0,5e-05,2]
[407760386,1772771439393,-500.0,5e-05,2]
[407760388,1772771439407,-500.0,5e-05,2]
[407760390,1772771439416,-500.0,5e-05,2]
[407760392,1772771439425,-394.20313373,5e-05,2]
[407760609,1772771441870,-50.28939169,2.592e-05,2]
[407760880,1772771444605,-1179.67946753,2.592e-05,2]
[407760883,1772771444616,-3256.23330091,2.592e-05,2]
[407760958,1772771446377,-513.79783987,2.592e-05,2]
[407760960,1772771446388,-105.79686627,5e-05,2]
[407760962,1772771446397,-496.57710395,5e-05,2]
[407761160,1772771882922,295.15,3.8e-06,2]
[407761196,1772772242652,-2000.0,4.207e-05,2]
[407761197,1772772244272,-2000.0,4.207e-05,2]
[407761198,1772772245216,-1000.0,4.207e-05,2]
[407761199,1772772245238,-1000.0,4.249e-05,2]
[407761200,1772772246131,-1775.55401121,4.249e-05,2]
[407761201,1772772246152,-224.44598879,4.314e-05,2]
[407761202,1772772247536,-31.20964582,4.314e-05,2]
[407761203,1772772247559,-515.5393998,4.559e-05,2]
[407761204,1772772247580,-272.0,4.999e-05,2]
[407761205,1772772247602,-300.0,4.999e-05,2]
[407761206,1772772247623,-881.25095438,5e-05,2]
[407761207,1772772248915,-175.25724702,5e-05,2]
[407761208,1772772248938,-1824.74275298,5e-05,2]
[407761209,1772772255899,-1000.0,5e-05,2]
[407761269,1772772632433,-483.84252842,4.134e-05,2]
[407761311,1772772638605,-2022.38299121,4.134e-05,2]
[407761313,1772772638616,-2493.77448037,4.134e-05,2]
[407761315,1772772638626,-250.54252192,4.155e-05,2]
[407761316,1772772638635,-452.6952127,4.176e-05,2]
[407761318,1772772638644,-188.425844,4.761e-05,2]
[407761320,1772772638654,-3175.25724702,5e-05,2]
[407761321,1772772638663,-188.425844,5.011e-05,2]
[407761323,1772772638671,-500.0,5.099e-05,2]
[407761325,1772772638680,-200.35403356,5.099e-05,2]
[407761326,1772772638689,-500.0,5.099e-05,2]
[407761328,1772772638698,-500.0,5.099e-05,2]
[407761330,1772772638708,-500.0,5.099e-05,2]
[407761331,1772772638717,-500.0,5.099e-05,2]
[407761333,1772772638726,-500.0,5.099e-05,2]
[407761334,1772772638735,-500.0,5.099e-05,2]
[407761336,1772772638744,-500.0,5.099e-05,2]
[407761339,1772772638753,-500.0,5.099e-05,2]
[407761342,1772772638761,-535.21948182,5.099e-05,2]
[407761343,1772772638770,-500.0,5.099e-05,2]
[407761346,1772772638780,-500.0,5.099e-05,2]
[407761348,1772772638790,-500.0,5.099e-05,2]
[407761351,1772772638798,-500.0,5.099e-05,2]
[407761353,1772772638807,-500.0,5.099e-05,2]
[407761356,1772772638816,-500.0,5.099e-05,2]
[407761359,1772772638825,-500.0,5.099e-05,2]
[407761362,1772772638835,-500.0,5.099e-05,2]
[407761365,1772772638843,-500.0,5.099e-05,2]
[407761367,1772772638852,-500.0,5.099e-05,2]
[407761370,1772772638861,-500.0,5.099e-05,2]
[407761372,1772772638870,-603.14319137,5.099e-05,2]
[407761375,1772772638879,-500.0,5.099e-05,2]
[407761378,1772772638889,-500.0,5.099e-05,2]
[407761380,1772772638898,-500.0,5.099e-05,2]
[407761382,1772772638907,-500.0,5.099e-05,2]
[407761383,1772772638917,-500.0,5.099e-05,2]
[407761384,1772772638926,-500.0,5.099e-05,2]
[407761386,1772772638935,-500.0,5.099e-05,2]
[407761387,1772772638944,-500.0,5.099e-05,2]
[407761389,1772772638954,-500.0,5.099e-05,2]
[407761391,1772772638962,-500.0,5.099e-05,2]
[407761392,1772772638971,-787.0,5.1e-05,2]
[407761393,1772772638981,-2849.44952853,5.1e-05,2]
[407761395,1772772638991,-7412.2691379,5.1e-05,2]
[407761396,1772772638999,-4629.87607323,5.1e-05,2]
[407761398,1772772639012,-2112.90606445,5.1e-05,2]
[407761400,1772772639021,-7071.55055505,5.1e-05,2]
[407761401,1772772639030,-6073.29513753,5.1e-05,2]
[407761403,1772772639040,-515.5393998,5.135e-05,2]
[407761405,1772772639048,-152.39,5.2e-05,2]
[407761406,1772772639057,-2189.0,5.245e-05,2]
[407761408,1772772639067,-638.0,5.245e-05,2]
[407761410,1772772639076,-434.0,5.245e-05,2]
[407761411,1772772639090,-188.425844,5.262e-05,2]
[407761413,1772772639099,-1147975.15795019,5.278e-05,2]
[407761415,1772772639110,-282.44579683,5.278e-05,2]
[407761565,1772772640969,-21090.27541347,5.278e-05,2]
[407761567,1772772640981,-3515.55,5.278e-05,2]
[407761580,1772772641118,-0.00215011,5.278e-05,2]
[407762051,1772772646610,-421.057,5.278e-05,2]
[407762059,1772772646667,-2239.07457887,5.278e-05,2]
[407762066,1772772646721,-6248.00471676,5.278e-05,2]
[407762236,1772773206374,-2000.0,4.9e-05,2]
[407762237,1772773209056,-4.58572092,4.9e-05,2]
[407762238,1772773209082,-255.43942694,4.925e-05,2]
[407762239,1772773209104,-1739.97485214,4.949e-05,2]
[407762240,1772773210510,-2000.0,4.949e-05,2]
[407762241,1772773212219,-1260.02514786,4.949e-05,2]
[407762242,1772773212241,-300.0,5.176e-05,2]
[407762243,1772773212511,-439.97485214,5.176e-05,2]
[407762244,1772773218160,-760.02514786,5.176e-05,2]
[407762245,1772773218180,-500.0,5.177e-05,2]
[407762246,1772773218201,-500.0,5.177e-05,2]
[407762247,1772773218220,-239.97485214,5.177e-05,2]
[407762248,1772773223240,-260.02514786,5.177e-05,2]
[407762249,1772773223261,-500.0,5.177e-05,2]
[407762250,1772773223289,-500.0,5.177e-05,2]
[407762251,1772773223309,-172.81596771,5.177e-05,2]
[407762252,1772773223331,-321.79298095,5.177e-05,2]
[407762253,1772773223351,-245.36590348,5.177e-05,2]
[407762254,1772773224461,-254.63409652,5.177e-05,2]
[407762255,1772773224484,-500.0,5.177e-05,2]
[407762256,1772773224506,-341.90665537,5.177e-05,2]
[407762257,1772773224529,-500.0,5.177e-05,2]
[407762258,1772773224550,-260.31431914,5.177e-05,2]
[407762259,1772773224574,-143.14492897,5.178e-05,2]
[407762260,1772773225710,-2000.0,5.178e-05,2]
[407762261,1772773226942,-2000.0,5.127e-05,2]
[407762262,1772773227976,-1904.34515972,5.127e-05,2]
[407762263,1772773228000,-95.65484028,5.178e-05,2]
[407762265,1772773271386,-2000.0,5.178e-05,2]
[407762266,1772773278623,-2000.0,5.178e-05,2]
[407762267,1772773280709,-2000.0,5.178e-05,2]
[407762268,1772773281881,-2000.0,5.178e-05,2]
[407762269,1772773282974,-2000.0,5.178e-05,2]
[407762309,1772773467263,-2000.0,5.178e-05,2]
[407762310,1772773468302,-2000.0,5.178e-05,2]
[407762311,1772773469223,-2000.0,5.178e-05,2]
[407762312,1772773470133,-2000.0,5.178e-05,2]
[407762313,1772773471018,-2000.0,5.178e-05,2]
[407762320,1772773553040,-1055.73866296,5.028e-05,2]
[407762321,1772773553064,-944.26133704,5.078e-05,2]
[407762322,1772773554628,-2000.0,5.078e-05,2]
[407762326,1772773556034,-2000.0,5.078e-05,2]
[407762327,1772773557212,-2000.0,5.078e-05,2]
[407762328,1772773558333,-2000.0,5.078e-05,2]
[407762338,1772773683696,206.6,3.8e-06,2]
[407762379,1772773831626,-150.05864947,4.9e-05,3]
[407762381,1772773831636,-150.18522465,4.9e-05,3]
[407762383,1772773831645,-150.15161668,4.9e-05,3]
[407762385,1772773831654,-250.3306384,4.95e-05,2]
[407762387,1772773831663,-168.64848552,5e-05,2]
[407762388,1772773831672,-251.14603546,5.077e-05,2]
[407762390,1772773831681,-19706.14370965,5.078e-05,2]
[407762641,1772773837747,-3382.00858279,5.078e-05,2]
[407762643,1772773837759,-435.0,5.078e-05,2]
[407762866,1772773842708,-1750.85,5.028e-05,2]
[407762867,1772773842818,-565.45,5.028e-05,2]
[407762870,1772773845648,-5402.85958621,5.028e-05,2]
[407762871,1772773845658,-9272.87953768,5.078e-05,2]
[407762872,1772773845669,-11218.0708776,5.078e-05,2]
[407762922,1772775031829,-214.5017703,4.107e-05,2]
[407762923,1772775031839,-255.24602599,4.454e-05,2]
[407762925,1772775031849,-158.46897696,4.8e-05,3]
[407762926,1772775031858,-174.82125979,4.8e-05,3]
[407762927,1772775031869,-51.33299162,4.8e-05,3]
[407762931,1772775032864,-120.55025697,4.8e-05,3]
[407762932,1772775032874,-176.7358016,4.8e-05,3]
[407762933,1772775032884,-300.0,4.852e-05,2]
[407762934,1772775032893,-300.0,4.852e-05,2]
[407762935,1772775032902,-300.0,4.852e-05,2]
[407762936,1772775032911,-649.21067812,4.852e-05,2]
[407762969,1772775037957,-550.78932188,4.852e-05,2]
[407762971,1772775037966,-500.0,4.853e-05,2]
[407762973,1772775037975,-500.0,4.853e-05,2]
[407762975,1772775037984,-500.0,4.853e-05,2]
[407762976,1772775037993,-500.0,4.853e-05,2]
[407762978,1772775038003,-500.0,4.853e-05,2]
[407762981,1772775038012,-500.0,4.853e-05,2]
[407762983,1772775038021,-500.0,4.853e-05,2]
[407762985,1772775038030,-500.0,4.853e-05,2]
[407762986,1772775038039,-500.0,4.853e-05,2]
[407762989,1772775038049,-166.6894446,4.853e-05,2]
[407762991,1772775038059,-168.67464439,4.853e-05,2]
[407762993,1772775038068,-266.04262997,4.853e-05,2]
[407762995,1772775038077,-551.60974471,4.853e-05,2]
[407762997,1772775038086,-219.45390855,4.853e-05,2]
[407762999,1772775038096,-500.0,4.853e-05,2]
[407763001,1772775038104,-500.0,4.853e-05,2]
[407763003,1772775038114,-163.02721825,4.853e-05,2]
[407763005,1772775038123,-500.0,4.853e-05,2]
[407763007,1772775038132,-318.29345188,4.853e-05,2]
[407763009,1772775038140,-500.0,4.853e-05,2]
[407763011,1772775038149,-500.0,4.853e-05,2]
[407763013,1772775038159,-500.0,4.853e-05,2]
[407763015,1772775038168,-500.0,4.853e-05,2]
[407763017,1772775038179,-500.0,4.853e-05,2]
[407763019,1772775038188,-234.05758513,4.853e-05,2]
[407763021,1772775038197,-500.0,4.853e-05,2]
[407763023,1772775038207,-500.0,4.853e-05,2]
[407763025,1772775038215,-500.0,4.853e-05,2]
[407763027,1772775038225,-500.0,4.853e-05,2]
[407763029,1772775038234,-500.0,4.853e-05,2]
[407763031,1772775038243,-500.0,4.853e-05,2]
[407763033,1772775038253,-500.0,4.853e-05,2]
[407763035,1772775038262,-4.39075556,4.853e-05,2]
[407763037,1772775038274,-495.60924444,4.853e-05,2]
[407763039,1772775038284,-328.20051481,4.853e-05,2]
[407763041,1772775038294,-119.25524075,4.853e-05,2]
[407763043,1772775038306,-67.51840264,4.853e-05,2]
[407763045,1772775038315,-528.963674,4.853e-05,2]
[407763047,1772775038324,-500.0,4.853e-05,2]
[407763049,1772775038333,-500.0,4.853e-05,2]
[407763051,1772775038342,-163.84229361,4.853e-05,2]
[407763529,1772775044452,-336.15770639,4.853e-05,2]
[407763531,1772775044461,-249.59595795,4.853e-05,2]
[407763564,1772775045887,-250.40404205,4.853e-05,2]
[407763565,1772775045896,-500.0,4.853e-05,2]
[407763566,1772775045905,-500.0,4.853e-05,2]
[407763567,1772775045914,-212.14633193,4.853e-05,2]
[407763568,1772775045924,-500.0,4.853e-05,2]
[407763569,1772775045933,-270.5901461,4.853e-05,2]
[407763570,1772775045942,-156236.20135474,4.878e-05,2]
[407763573,1772775045964,-11232.48708577,4.878e-05,2]
[407763575,1772775045975,-50221.81353459,4.878e-05,2]
[407763622,1772775406043,-151.0,0.000122,120]
[407763695,1772776232009,-1784.93025533,4.194e-05,2]
[407763701,1772776232067,-357.47022909,4.194e-05,2]
[407763794,1772776238117,-2857.59951558,4.194e-05,2]
[407763795,1772776238126,-5000.0,4.236e-05,2]
[407763797,1772776238136,-250.14110547,4.301e-05,2]
[407763799,1772776238145,-156.66526486,4.321e-05,2]
[407763801,1772776238154,-500.0,4.473e-05,2]
[407763803,1772776238163,-500.0,4.473e-05,2]
[407763805,1772776238177,-500.0,4.473e-05,2]
[407763806,1772776238187,-162.31008184,4.473e-05,2]
[407763808,1772776238196,-473.23931126,4.473e-05,2]
[407763810,1772776238205,-500.0,4.473e-05,2]
[407763812,1772776238215,-500.0,4.473e-05,2]
[407763814,1772776238224,-500.0,4.473e-05,2]
[407763816,1772776238234,-500.0,4.473e-05,2]
[407763817,1772776238245,-500.0,4.473e-05,2]
[407763819,1772776238254,-500.0,4.473e-05,2]
[407763821,1772776238264,-500.0,4.473e-05,2]
[407763823,1772776238273,-500.0,4.473e-05,2]
[407763825,1772776238286,-500.0,4.473e-05,2]
[407763827,1772776238295,-500.0,4.473e-05,2]
[407763828,1772776238304,-500.0,4.473e-05,2]
[407763830,1772776238313,-500.0,4.473e-05,2]
[407763832,1772776238322,-500.0,4.473e-05,2]
[407763834,1772776238331,-320.5377908,4.473e-05,2]
[407763836,1772776238340,-500.0,4.473e-05,2]
[407763837,1772776238349,-500.0,4.473e-05,2]
[407763839,1772776238359,-500.0,4.473e-05,2]
[407763841,1772776238368,-528.16651909,4.473e-05,2]
[407763843,1772776238378,-408.3588946,4.473e-05,2]
[407763845,1772776238387,-500.0,4.473e-05,2]
[407763847,1772776238397,-500.0,4.473e-05,2]
[407763848,1772776238406,-501.72712975,4.473e-05,2]
[407763850,1772776238416,-500.0,4.473e-05,2]
[407763852,1772776238426,-500.0,4.473e-05,2]
[407763854,1772776238435,-500.0,4.473e-05,2]
[407763856,1772776238446,-500.0,4.473e-05,2]
[407763858,1772776238457,-500.0,4.473e-05,2]
[407763859,1772776238467,-500.0,4.473e-05,2]
[407763861,1772776238477,-263.19186383,4.473e-05,2]
[407763863,1772776238486,-500.0,4.473e-05,2]
[407763865,1772776238495,-500.0,4.473e-05,2]
[407763867,1772776238505,-160.43620196,4.473e-05,2]
[407763869,1772776238514,-500.0,4.473e-05,2]
[407763870,1772776238523,-500.0,4.473e-05,2]
[407763872,1772776238532,-500.0,4.473e-05,2]
[407763874,1772776238541,-500.0,4.473e-05,2]
[407763876,1772776238551,-500.0,4.473e-05,2]
[407763878,1772776238560,-500.0,4.473e-05,2]
[407763879,1772776238569,-500.0,4.473e-05,2]
[407763881,1772776238578,-7869.91914172,4.5e-05,2]
[407763883,1772776238590,-3233.56746409,4.5e-05,2]
[407764405,1772776246128,-1680.12722241,4.152e-05,2]
[407764408,1772776246139,-5017.31155179,4.6e-05,3]
[407764410,1772776246148,-2823.35335524,4.6e-05,3]
[407764412,1772776246322,-3565.69888033,4.6e-05,3]
[407764413,1772776246392,-1266.46,4.6e-05,3]
[407764414,1772776246505,-3154.61136444,4.6e-05,3]
[407764556,1772776715581,311.12132903,1e-05,3]
[407764671,1772777397991,95093.97257937,0.00011,120]
[407764687,1772777432083,-304.45,3.72e-06,2]
[407764688,1772777432093,-304.45,3.76e-06,2]
[407764689,1772777432103,-152.23,3.8e-06,2]
[407764690,1772777432112,-152.22,3.8e-06,2]
[407764691,1772777432122,-428.49934696,5.02e-06,2]
[407764692,1772777432132,-254.85300783,1.759e-05,2]
[407764693,1772777432141,-165.174054,3.47e-05,2]
[407764694,1772777432151,-300.72654924,3.759e-05,2]
[407764695,1772777432160,-188.425844,3.817e-05,2]
[407764696,1772777432169,-500.0,4.153e-05,2]
[407764697,1772777432179,-500.0,4.153e-05,2]
[407764698,1772777432188,-500.0,4.153e-05,2]
[407764699,1772777432197,-500.0,4.153e-05,2]
[407764700,1772777432207,-490.75193206,4.153e-05,2]
[407764701,1772777432218,-9.24806794,4.153e-05,2]
[407764702,1772777432228,-500.0,4.153e-05,2]
[407764703,1772777432237,-300.0,4.172e-05,2]
[407764704,1772777432247,-1068.0,4.172e-05,2]
[407764705,1772777432256,-7553.92042629,4.173e-05,2]
[407764706,1772777432267,-12855.81806096,4.173e-05,2]
[407764707,1772777432280,-7023.0165,4.173e-05,2]
[407764708,1772777432291,-1078.08916142,4.173e-05,2]
[407764709,1772777432302,-276.36,4.173e-05,2]
[407764710,1772777432313,-997.32222237,4.173e-05,2]
[407765216,1772777445131,-382.35591491,4.173e-05,2]
[407765217,1772777445153,-658.83621924,4.173e-05,2]
[407765218,1772777445179,-1522.895,4.173e-05,2]
[407765222,1772777446175,-3877.07546754,4.173e-05,2]
[407765223,1772777446232,-33654.62419998,4.173e-05,2]